[Event "Titled Tuesday Blitz March 14 Late 2023"]
[White "Gharamian, Tigran"]
[Black "Carbone, Diego"]
[WhiteFideId "13301527"]
[BlackFideId "3002179"]
[WhiteElo "2632"]
[BlackElo "2266"]
[Result "1/2-1/2"]
[Round "07"]
[TimeControl "180+2"]
[Date "2023.03.14"]
[WhiteClock "0:00:13"]
[BlackClock "0:00:25"]

1. d4 {[%clk 0:02:57]}  Nf6 {[%clk 0:02:59]} 2. c4 {[%clk 0:02:51]}  e6 {[%clk 0:02:58]} 3. Nf3 {[%clk 0:02:51]}  d5 {[%clk 0:02:58]} 4. Nc3 {[%clk 0:02:51]}  dxc4 {[%clk 0:02:58]} 5. e4 {[%clk 0:02:51]}  Bb4 {[%clk 0:02:58]} 6. Bxc4 {[%clk 0:02:50]}  Nxe4 {[%clk 0:02:58]} 7. O-O {[%clk 0:02:50]}  Nxc3 {[%clk 0:02:58]} 8. bxc3 {[%clk 0:02:51]}  Be7 {[%clk 0:02:59]} 9. Qe2 {[%clk 0:02:50]}  O-O {[%clk 0:02:57]} 10. Ne5 {[%clk 0:02:51]}  Nd7 {[%clk 0:02:55]} 11. Rd1 {[%clk 0:02:44]}  Nf6 {[%clk 0:02:45]} 12. Rd3 {[%clk 0:02:38]}  a6 {[%clk 0:02:38]} 13. Rg3 {[%clk 0:02:36]}  b5 {[%clk 0:02:30]} 14. Bh6 {[%clk 0:02:29]}  g6 {[%clk 0:02:20]} 15. Nc6 {[%clk 0:02:08]}  Qe8 {[%clk 0:02:13]} 16. Nxe7+ {[%clk 0:02:08]}  Qxe7 {[%clk 0:02:13]} 17. Bd3 {[%clk 0:01:59]}  Bb7 {[%clk 0:02:09]} 18. Bxf8 {[%clk 0:01:58]}  Rxf8 {[%clk 0:02:08]} 19. a4 {[%clk 0:01:45]}  Nd5 {[%clk 0:01:52]} 20. Be4 {[%clk 0:01:32]}  Qd7 {[%clk 0:01:47]} 21. axb5 {[%clk 0:01:26]}  axb5 {[%clk 0:01:48]} 22. Rb1 {[%clk 0:01:03]}  Bc6 {[%clk 0:01:45]} 23. h4 {[%clk 0:00:54]}  Ra8 {[%clk 0:01:34]} 24. h5 {[%clk 0:00:51]}  Nf4 {[%clk 0:01:32]} 25. Qf3 {[%clk 0:00:43]}  Bxe4 {[%clk 0:01:24]} 26. Qxe4 {[%clk 0:00:44]}  Nd5 {[%clk 0:01:20]} 27. hxg6 {[%clk 0:00:41]}  hxg6 {[%clk 0:01:15]} 28. Rh3 {[%clk 0:00:38]}  Ra3 {[%clk 0:00:59]} 29. Qh4 {[%clk 0:00:32]}  Kf8 {[%clk 0:00:59]} 30. c4 {[%clk 0:00:22]}  Rxh3 {[%clk 0:00:47]} 31. Qxh3 {[%clk 0:00:21]}  bxc4 {[%clk 0:00:43]} 32. Rb8+ {[%clk 0:00:22]}  Ke7 {[%clk 0:00:42]} 33. Qh4+ {[%clk 0:00:23]}  Nf6 {[%clk 0:00:40]} 34. Qh8 {[%clk 0:00:19]}  Nd5 {[%clk 0:00:27]} 35. Qf8+ {[%clk 0:00:17]}  Kf6 {[%clk 0:00:26]} 36. Qh8+ {[%clk 0:00:14]}  Ke7 {[%clk 0:00:26]} 37. Qh4+ {[%clk 0:00:14]}  Nf6 {[%clk 0:00:25]} 38. Qh8 {[%clk 0:00:13]}  Nd5 {[%clk 0:00:25]} 1/2-1/2


[Site "https://www.chess.com"]

[Event "Titled Tuesday Blitz March 14 Late 2023"]
[White "Smith, Garrett L"]
[Black "Shapiro, Viktor"]
[WhiteFideId "2024829"]
[BlackFideId "4175700"]
[WhiteElo "2280"]
[BlackElo "2152"]
[Result "0-1"]
[Round "07"]
[TimeControl "180+2"]
[Date "2023.03.14"]
[WhiteClock "0:01:00"]
[BlackClock "0:01:23"]

1. e4 {[%clk 0:03:00]}  c5 {[%clk 0:02:59]} 2. a3 {[%clk 0:03:00]}  e6 {[%clk 0:02:58]} 3. b4 {[%clk 0:03:00]}  cxb4 {[%clk 0:02:58]} 4. axb4 {[%clk 0:03:01]}  Bxb4 {[%clk 0:02:58]} 5. Bb2 {[%clk 0:03:01]}  Nf6 {[%clk 0:02:54]} 6. e5 {[%clk 0:03:02]}  Nd5 {[%clk 0:02:54]} 7. c4 {[%clk 0:03:02]}  Ne7 {[%clk 0:02:52]} 8. Qg4 {[%clk 0:03:00]}  Nf5 {[%clk 0:02:47]} 9. Nf3 {[%clk 0:02:59]}  h5 {[%clk 0:02:47]} 10. Qf4 {[%clk 0:02:59]}  Nc6 {[%clk 0:02:45]} 11. Nc3 {[%clk 0:02:54]}  Be7 {[%clk 0:02:36]} 12. Ne4 {[%clk 0:02:38]}  b6 {[%clk 0:02:18]} 13. Bd3 {[%clk 0:02:27]}  Bb7 {[%clk 0:02:11]} 14. h4 {[%clk 0:02:09]}  Nb4 {[%clk 0:02:09]} 15. Bb1 {[%clk 0:02:07]}  a5 {[%clk 0:02:04]} 16. d4 {[%clk 0:01:46]}  Rc8 {[%clk 0:02:03]} 17. Ned2 {[%clk 0:01:38]}  g6 {[%clk 0:01:58]} 18. Ng5 {[%clk 0:01:23]}  Bxg2 {[%clk 0:01:48]} 19. Rg1 {[%clk 0:01:23]}  Bb7 {[%clk 0:01:47]} 20. d5 {[%clk 0:01:19]}  Qc7 {[%clk 0:01:30]} 21. d6 {[%clk 0:01:16]}  Bxg5 {[%clk 0:01:30]} 22. Rxg5 {[%clk 0:01:09]}  Qc5 {[%clk 0:01:27]} 23. Be4 {[%clk 0:01:00]}  Bxe4 {[%clk 0:01:23]} 24. Nxe4 {[%clk 0:01:00]}  Nd3+ {[%clk 0:01:23]} 0-1


[Site "https://www.chess.com"]

[Event "Titled Tuesday Blitz March 14 Late 2023"]
[White "Bruedigam, Martin"]
[Black "Bogaudinov, Rushan"]
[WhiteFideId "24608033"]
[BlackFideId "4129288"]
[WhiteElo "2331"]
[BlackElo "1949"]
[Result "1-0"]
[Round "07"]
[TimeControl "180+2"]
[Date "2023.03.14"]
[WhiteClock "0:00:16"]
[BlackClock "0:00:01"]

1. d4 {[%clk 0:02:56]}  d5 {[%clk 0:02:59]} 2. c4 {[%clk 0:02:56]}  dxc4 {[%clk 0:02:59]} 3. Nf3 {[%clk 0:02:54]}  e6 {[%clk 0:02:59]} 4. e3 {[%clk 0:02:54]}  Nf6 {[%clk 0:02:57]} 5. Bxc4 {[%clk 0:02:54]}  c5 {[%clk 0:02:57]} 6. O-O {[%clk 0:02:51]}  a6 {[%clk 0:02:57]} 7. Qe2 {[%clk 0:02:49]}  b5 {[%clk 0:02:56]} 8. Bb3 {[%clk 0:02:49]}  Bb7 {[%clk 0:02:51]} 9. Rd1 {[%clk 0:02:44]}  Qc7 {[%clk 0:02:48]} 10. Nc3 {[%clk 0:02:38]}  c4 {[%clk 0:02:37]} 11. Bc2 {[%clk 0:02:37]}  b4 {[%clk 0:02:32]} 12. Nb1 {[%clk 0:02:36]}  Nbd7 {[%clk 0:02:30]} 13. e4 {[%clk 0:02:29]}  Be7 {[%clk 0:02:29]} 14. d5 {[%clk 0:02:24]}  e5 {[%clk 0:02:16]} 15. Bg5 {[%clk 0:02:14]}  Bd6 {[%clk 0:02:15]} 16. Nbd2 {[%clk 0:02:12]}  Rc8 {[%clk 0:02:14]} 17. Ba4 {[%clk 0:02:11]}  O-O {[%clk 0:02:13]} 18. Bxd7 {[%clk 0:02:07]}  Nxd7 {[%clk 0:02:11]} 19. Rac1 {[%clk 0:02:07]}  c3 {[%clk 0:02:04]} 20. Nb3 {[%clk 0:01:59]}  f5 {[%clk 0:01:46]} 21. bxc3 {[%clk 0:01:53]}  fxe4 {[%clk 0:01:36]} 22. Qxe4 {[%clk 0:01:50]}  bxc3 {[%clk 0:01:35]} 23. Rd3 {[%clk 0:01:40]}  h6 {[%clk 0:01:32]} 24. Rdxc3 {[%clk 0:01:34]}  Qxc3 {[%clk 0:01:26]} 25. Rxc3 {[%clk 0:01:35]}  Rxc3 {[%clk 0:01:26]} 26. Bxh6 {[%clk 0:01:35]}  Nf6 {[%clk 0:01:02]} 27. Qg6 {[%clk 0:01:34]}  Rc7 {[%clk 0:00:54]} 28. h4 {[%clk 0:01:13]}  Bxd5 {[%clk 0:00:53]} 29. Be3 {[%clk 0:01:11]}  Be4 {[%clk 0:00:39]} 30. Qg5 {[%clk 0:01:09]}  Re8 {[%clk 0:00:31]} 31. h5 {[%clk 0:01:06]}  Kh7 {[%clk 0:00:29]} 32. Qh4 {[%clk 0:01:04]}  Rc4 {[%clk 0:00:26]} 33. Ng5+ {[%clk 0:01:03]}  Kg8 {[%clk 0:00:25]} 34. Nxe4 {[%clk 0:01:02]}  Rxe4 {[%clk 0:00:24]} 35. Qg5 {[%clk 0:01:01]}  Rg4 {[%clk 0:00:23]} 36. Qf5 {[%clk 0:01:01]}  e4 {[%clk 0:00:20]} 37. Bd4 {[%clk 0:00:55]}  Rf4 {[%clk 0:00:18]} 38. Qh3 {[%clk 0:00:52]}  Kf7 {[%clk 0:00:16]} 39. g3 {[%clk 0:00:42]}  Rf3 {[%clk 0:00:15]} 40. Bxf6 {[%clk 0:00:31]}  Rxf6 {[%clk 0:00:15]} 41. Qd7+ {[%clk 0:00:26]}  Re7 {[%clk 0:00:15]} 42. Qc6 {[%clk 0:00:24]}  e3 {[%clk 0:00:14]} 43. fxe3 {[%clk 0:00:23]}  Rxe3 {[%clk 0:00:14]} 44. Qd7+ {[%clk 0:00:22]}  Re7 {[%clk 0:00:14]} 45. Qg4 {[%clk 0:00:21]}  Re3 {[%clk 0:00:13]} 46. Qd7+ {[%clk 0:00:20]}  Kf8 {[%clk 0:00:10]} 47. Qc8+ {[%clk 0:00:20]}  Re8 {[%clk 0:00:07]} 48. Qxa6 {[%clk 0:00:19]}  Kg8 {[%clk 0:00:05]} 49. Qc4+ {[%clk 0:00:19]}  Kh8 {[%clk 0:00:05]} 50. Nd4 {[%clk 0:00:18]}  Re3 {[%clk 0:00:04]} 51. Nf5 {[%clk 0:00:16]}  Rxf5 {[%clk 0:00:02]} 52. Qc8+ {[%clk 0:00:15]}  Rf8 {[%clk 0:00:01]} 53. Qd7 {[%clk 0:00:15]}  Rxg3+ {[%clk 0:00:01]} 54. Kh1 {[%clk 0:00:16]} 1-0


[Site "https://www.chess.com"]

[Event "Titled Tuesday Blitz March 14 Late 2023"]
[White "Vega Gutierrez, Sabrina"]
[Black "Gamage, Wanshini Vidusama"]
[WhiteFideId "2219026"]
[BlackFideId "9953752"]
[WhiteElo "2209"]
[BlackElo "2268"]
[Result "1-0"]
[Round "07"]
[TimeControl "180+2"]
[Date "2023.03.14"]
[WhiteClock "0:01:25"]
[BlackClock "0:00:46"]

1. e4 {[%clk 0:03:00]}  c5 {[%clk 0:02:57]} 2. Nf3 {[%clk 0:03:01]}  d6 {[%clk 0:02:57]} 3. d4 {[%clk 0:03:02]}  cxd4 {[%clk 0:02:58]} 4. Qxd4 {[%clk 0:03:02]}  Nf6 {[%clk 0:02:58]} 5. Nc3 {[%clk 0:03:01]}  Nc6 {[%clk 0:02:57]} 6. Bb5 {[%clk 0:03:00]}  Bd7 {[%clk 0:02:57]} 7. Bxc6 {[%clk 0:03:00]}  Bxc6 {[%clk 0:02:58]} 8. Bg5 {[%clk 0:03:00]}  e6 {[%clk 0:02:55]} 9. O-O-O {[%clk 0:03:00]}  Be7 {[%clk 0:02:45]} 10. Qd3 {[%clk 0:03:01]}  a6 {[%clk 0:02:37]} 11. Nd4 {[%clk 0:03:01]}  Bd7 {[%clk 0:02:30]} 12. f4 {[%clk 0:02:59]}  h6 {[%clk 0:02:28]} 13. Bh4 {[%clk 0:02:52]}  b5 {[%clk 0:02:25]} 14. e5 {[%clk 0:02:30]}  dxe5 {[%clk 0:02:20]} 15. fxe5 {[%clk 0:02:30]}  Nd5 {[%clk 0:01:56]} 16. Bxe7 {[%clk 0:02:23]}  Nxe7 {[%clk 0:01:54]} 17. Ne4 {[%clk 0:02:22]}  O-O {[%clk 0:01:51]} 18. Qg3 {[%clk 0:02:19]}  Ng6 {[%clk 0:01:38]} 19. h4 {[%clk 0:01:54]}  Qc7 {[%clk 0:01:37]} 20. h5 {[%clk 0:01:46]}  Nxe5 {[%clk 0:01:24]} 21. Nf6+ {[%clk 0:01:45]}  Kh8 {[%clk 0:01:23]} 22. Nxd7 {[%clk 0:01:43]}  Rfc8 {[%clk 0:00:54]} 23. Nxe5 {[%clk 0:01:38]}  Kg8 {[%clk 0:00:50]} 24. c3 {[%clk 0:01:27]}  f6 {[%clk 0:00:48]} 25. Nxe6 {[%clk 0:01:25]}  Qxe5 {[%clk 0:00:46]} 26. Qxg7# {[%clk 0:01:25]} 1-0


[Site "https://www.chess.com"]

[Event "Titled Tuesday Blitz March 14 Late 2023"]
[White "Kovacs, Klara"]
[Black "Torres Dominguez, David"]
[WhiteFideId "733210"]
[BlackFideId "2220857"]
[WhiteElo "2179"]
[BlackElo "1999"]
[Result "1-0"]
[Round "07"]
[TimeControl "180+2"]
[Date "2023.03.14"]
[WhiteClock "0:00:37"]
[BlackClock "0:00:03"]

1. Nf3 {[%clk 0:02:59]}  d5 {[%clk 0:02:59]} 2. g3 {[%clk 0:03:00]}  Nc6 {[%clk 0:02:59]} 3. Bg2 {[%clk 0:03:00]}  e5 {[%clk 0:02:59]} 4. d3 {[%clk 0:03:00]}  Bg4 {[%clk 0:03:00]} 5. h3 {[%clk 0:02:59]}  Bf5 {[%clk 0:02:58]} 6. O-O {[%clk 0:02:58]}  Qd7 {[%clk 0:02:58]} 7. Kh2 {[%clk 0:02:57]}  h5 {[%clk 0:02:56]} 8. Nh4 {[%clk 0:02:54]}  Be6 {[%clk 0:02:55]} 9. e4 {[%clk 0:02:53]}  f6 {[%clk 0:02:52]} 10. Ng6 {[%clk 0:02:48]}  Rh7 {[%clk 0:02:51]} 11. Nxf8 {[%clk 0:02:47]}  Kxf8 {[%clk 0:02:51]} 12. Nc3 {[%clk 0:02:45]}  Nge7 {[%clk 0:02:49]} 13. f4 {[%clk 0:02:38]}  d4 {[%clk 0:02:42]} 14. Ne2 {[%clk 0:02:29]}  Ng8 {[%clk 0:02:04]} 15. fxe5 {[%clk 0:02:20]}  Nxe5 {[%clk 0:02:04]} 16. Nf4 {[%clk 0:02:20]}  g5 {[%clk 0:01:38]} 17. Nxe6+ {[%clk 0:02:19]}  Qxe6 {[%clk 0:01:38]} 18. Bxg5 {[%clk 0:02:19]}  Ke7 {[%clk 0:01:33]} 19. Bf4 {[%clk 0:02:16]}  Nh6 {[%clk 0:01:27]} 20. Bxh6 {[%clk 0:01:53]}  Rxh6 {[%clk 0:01:25]} 21. Rf5 {[%clk 0:01:54]}  Rah8 {[%clk 0:01:13]} 22. Qg1 {[%clk 0:01:48]}  Ng4+ {[%clk 0:01:11]} 23. Kh1 {[%clk 0:01:48]}  Ne3 {[%clk 0:01:10]} 24. Rf3 {[%clk 0:01:45]}  h4 {[%clk 0:01:09]} 25. g4 {[%clk 0:01:44]}  Nxg4 {[%clk 0:01:06]} 26. Qxd4 {[%clk 0:01:43]}  Ne5 {[%clk 0:00:55]} 27. Rf5 {[%clk 0:01:40]}  Rg8 {[%clk 0:00:51]} 28. Raf1 {[%clk 0:01:40]}  Rhg6 {[%clk 0:00:49]} 29. R1f2 {[%clk 0:01:39]}  b6 {[%clk 0:00:46]} 30. b4 {[%clk 0:01:35]}  Qd6 {[%clk 0:00:40]} 31. Qxd6+ {[%clk 0:01:33]}  cxd6 {[%clk 0:00:40]} 32. Rh5 {[%clk 0:01:32]}  Nc6 {[%clk 0:00:27]} 33. Rxh4 {[%clk 0:01:31]}  Nd4 {[%clk 0:00:26]} 34. c3 {[%clk 0:01:29]}  Nb5 {[%clk 0:00:25]} 35. c4 {[%clk 0:01:28]}  Nc3 {[%clk 0:00:25]} 36. Rh7+ {[%clk 0:01:24]}  Ke6 {[%clk 0:00:24]} 37. h4 {[%clk 0:01:23]}  Nd1 {[%clk 0:00:24]} 38. Rd2 {[%clk 0:01:07]}  Ke5 {[%clk 0:00:22]} 39. Rh5+ {[%clk 0:01:01]}  Kd4 {[%clk 0:00:21]} 40. Rd5+ {[%clk 0:00:54]}  Kc3 {[%clk 0:00:21]} 41. Rxd1 {[%clk 0:00:54]}  Rxg2 {[%clk 0:00:21]} 42. c5 {[%clk 0:00:53]}  bxc5 {[%clk 0:00:19]} 43. bxc5 {[%clk 0:00:53]}  Rxa2 {[%clk 0:00:20]} 44. cxd6 {[%clk 0:00:53]}  Rgg2 {[%clk 0:00:19]} 45. Rc5+ {[%clk 0:00:53]}  Kb4 {[%clk 0:00:17]} 46. Rf5 {[%clk 0:00:50]}  Rh2+ {[%clk 0:00:14]} 47. Kg1 {[%clk 0:00:50]}  Rag2+ {[%clk 0:00:15]} 48. Kf1 {[%clk 0:00:50]}  Rc2 {[%clk 0:00:15]} 49. Kg1 {[%clk 0:00:44]}  Rcg2+ {[%clk 0:00:13]} 50. Kf1 {[%clk 0:00:44]}  Rc2 {[%clk 0:00:13]} 51. Rb1+ {[%clk 0:00:44]}  Kc3 {[%clk 0:00:03]} 52. Rc5+ {[%clk 0:00:42]}  Kxd3 {[%clk 0:00:03]} 53. Rxc2 {[%clk 0:00:43]}  Kxc2 {[%clk 0:00:03]} 54. d7 {[%clk 0:00:37]} 1-0


[Site "https://www.chess.com"]

[Event "Titled Tuesday Blitz March 14 Late 2023"]
[White "Comas Fabrego, Lluis"]
[Black "Skaric, Djuro"]
[WhiteFideId "2200325"]
[BlackFideId "934569"]
[WhiteElo "2523"]
[BlackElo "2282"]
[Result "0-1"]
[Round "07"]
[TimeControl "180+2"]
[Date "2023.03.14"]
[WhiteClock "0:00:01"]
[BlackClock "0:01:45"]

1. Nf3 {[%clk 0:02:46]}  d6 {[%clk 0:02:57]} 2. d4 {[%clk 0:02:45]}  g6 {[%clk 0:02:57]} 3. c4 {[%clk 0:02:45]}  Bg7 {[%clk 0:02:58]} 4. Nc3 {[%clk 0:02:46]}  Nf6 {[%clk 0:02:59]} 5. g3 {[%clk 0:02:46]}  O-O {[%clk 0:02:59]} 6. Bg2 {[%clk 0:02:46]}  Nc6 {[%clk 0:03:00]} 7. O-O {[%clk 0:02:46]}  e5 {[%clk 0:03:01]} 8. d5 {[%clk 0:02:46]}  Ne7 {[%clk 0:03:01]} 9. c5 {[%clk 0:02:47]}  h6 {[%clk 0:03:02]} 10. cxd6 {[%clk 0:02:47]}  cxd6 {[%clk 0:03:01]} 11. e4 {[%clk 0:02:47]}  Ne8 {[%clk 0:02:59]} 12. a4 {[%clk 0:02:47]}  f5 {[%clk 0:02:59]} 13. Nd2 {[%clk 0:02:46]}  g5 {[%clk 0:02:58]} 14. Nc4 {[%clk 0:02:44]}  f4 {[%clk 0:02:57]} 15. f3 {[%clk 0:02:41]}  Rf7 {[%clk 0:02:56]} 16. b3 {[%clk 0:02:40]}  Bf8 {[%clk 0:02:50]} 17. Ba3 {[%clk 0:02:39]}  Ng6 {[%clk 0:02:50]} 18. Rc1 {[%clk 0:02:28]}  Rg7 {[%clk 0:02:48]} 19. a5 {[%clk 0:01:49]}  h5 {[%clk 0:02:44]} 20. a6 {[%clk 0:01:44]}  b6 {[%clk 0:02:44]} 21. Qd3 {[%clk 0:01:30]}  Bxa6 {[%clk 0:02:41]} 22. b4 {[%clk 0:01:25]}  Rc8 {[%clk 0:02:39]} 23. b5 {[%clk 0:01:25]}  Bb7 {[%clk 0:02:39]} 24. Na2 {[%clk 0:01:24]}  Rcc7 {[%clk 0:02:30]} 25. Nb4 {[%clk 0:01:24]}  Bc8 {[%clk 0:02:28]} 26. Nc6 {[%clk 0:01:24]}  Qf6 {[%clk 0:02:27]} 27. Bb2 {[%clk 0:01:22]}  g4 {[%clk 0:02:25]} 28. fxg4 {[%clk 0:01:21]}  Bxg4 {[%clk 0:02:21]} 29. Rf2 {[%clk 0:00:59]}  Qg5 {[%clk 0:02:21]} 30. Rcf1 {[%clk 0:00:52]}  fxg3 {[%clk 0:02:17]} 31. hxg3 {[%clk 0:00:52]}  Rcf7 {[%clk 0:02:14]} 32. Rxf7 {[%clk 0:00:48]}  Rxf7 {[%clk 0:02:14]} 33. Rxf7 {[%clk 0:00:42]}  Kxf7 {[%clk 0:02:14]} 34. Qe3 {[%clk 0:00:42]}  Qxe3+ {[%clk 0:02:11]} 35. Nxe3 {[%clk 0:00:41]}  Bh6 {[%clk 0:02:11]} 36. Nxg4 {[%clk 0:00:40]}  hxg4 {[%clk 0:02:11]} 37. Nxa7 {[%clk 0:00:39]}  Be3+ {[%clk 0:02:11]} 38. Kf1 {[%clk 0:00:37]}  Bc5 {[%clk 0:02:11]} 39. Nc6 {[%clk 0:00:37]}  Nc7 {[%clk 0:02:10]} 40. Ke2 {[%clk 0:00:23]}  Nxb5 {[%clk 0:02:10]} 41. Kd3 {[%clk 0:00:23]}  Nc7 {[%clk 0:02:10]} 42. Bf1 {[%clk 0:00:19]}  Kf6 {[%clk 0:02:09]} 43. Ke2 {[%clk 0:00:17]}  Ne7 {[%clk 0:02:05]} 44. Nxe7 {[%clk 0:00:16]}  Kxe7 {[%clk 0:02:05]} 45. Ke1 {[%clk 0:00:16]}  Kf6 {[%clk 0:02:05]} 46. Be2 {[%clk 0:00:16]}  Kg5 {[%clk 0:02:05]} 47. Bc1+ {[%clk 0:00:17]}  Kh5 {[%clk 0:02:05]} 48. Bd2 {[%clk 0:00:17]}  b5 {[%clk 0:02:05]} 49. Kf1 {[%clk 0:00:15]}  b4 {[%clk 0:02:06]} 50. Bc4 {[%clk 0:00:15]}  Ne8 {[%clk 0:02:05]} 51. Be1 {[%clk 0:00:14]}  Nf6 {[%clk 0:02:05]} 52. Bd3 {[%clk 0:00:15]}  b3 {[%clk 0:02:05]} 53. Ke2 {[%clk 0:00:15]}  Bd4 {[%clk 0:02:03]} 54. Kd1 {[%clk 0:00:15]}  b2 {[%clk 0:02:00]} 55. Kc2 {[%clk 0:00:14]}  Nd7 {[%clk 0:01:59]} 56. Bc3 {[%clk 0:00:14]}  Bf2 {[%clk 0:01:59]} 57. Bxb2 {[%clk 0:00:14]}  Bxg3 {[%clk 0:01:59]} 58. Ba3 {[%clk 0:00:14]}  Bf2 {[%clk 0:01:56]} 59. Bxd6 {[%clk 0:00:14]}  g3 {[%clk 0:01:56]} 60. Be2+ {[%clk 0:00:12]}  Kh4 {[%clk 0:01:56]} 61. Bf3 {[%clk 0:00:13]}  Kh3 {[%clk 0:01:56]} 62. Kd3 {[%clk 0:00:13]}  g2 {[%clk 0:01:56]} 63. Bxg2+ {[%clk 0:00:13]}  Kxg2 {[%clk 0:01:57]} 64. Kc4 {[%clk 0:00:14]}  Kf3 {[%clk 0:01:57]} 65. Kb5 {[%clk 0:00:14]}  Kxe4 {[%clk 0:01:56]} 66. Kc6 {[%clk 0:00:15]}  Nf6 {[%clk 0:01:56]} 67. Be7 {[%clk 0:00:14]}  Nxd5 {[%clk 0:01:56]} 68. Bf8 {[%clk 0:00:12]}  Nf6 {[%clk 0:01:54]} 69. Bg7 {[%clk 0:00:12]}  Kf5 {[%clk 0:01:53]} 70. Kb5 {[%clk 0:00:10]}  e4 {[%clk 0:01:53]} 71. Bh6 {[%clk 0:00:10]}  Nd5 {[%clk 0:01:52]} 72. Bc1 {[%clk 0:00:10]}  Be3 {[%clk 0:01:51]} 73. Bb2 {[%clk 0:00:09]}  Bd2 {[%clk 0:01:50]} 74. Bd4 {[%clk 0:00:08]}  Kf4 {[%clk 0:01:47]} 75. Kc4 {[%clk 0:00:07]}  Ne3+ {[%clk 0:01:47]} 76. Kb3 {[%clk 0:00:05]}  Nf5 {[%clk 0:01:47]} 77. Bg1 {[%clk 0:00:05]}  Be3 {[%clk 0:01:47]} 78. Bh2+ {[%clk 0:00:04]}  Kf3 {[%clk 0:01:47]} 79. Kc2 {[%clk 0:00:05]}  Bf4 {[%clk 0:01:45]} 80. Bg1 {[%clk 0:00:03]}  Ng3 {[%clk 0:01:45]} 81. Bc5 {[%clk 0:00:02]}  Ne2 {[%clk 0:01:45]} 82. Kd1 {[%clk 0:00:01]}  Be3 {[%clk 0:01:45]} 0-1


[Site "https://www.chess.com"]

[Event "Titled Tuesday Blitz March 14 Late 2023"]
[White "Antonio, Jorge Carlos"]
[Black "Saravana, Krishnan P."]
[WhiteFideId "113190"]
[BlackFideId "5018382"]
[WhiteElo "2247"]
[BlackElo "2189"]
[Result "0-1"]
[Round "07"]
[TimeControl "180+2"]
[Date "2023.03.14"]
[WhiteClock "0:00:13"]
[BlackClock "0:00:19"]

1. d4 {[%clk 0:03:00]}  d5 {[%clk 0:02:58]} 2. Nf3 {[%clk 0:02:59]}  Nf6 {[%clk 0:02:57]} 3. Bf4 {[%clk 0:02:58]}  g6 {[%clk 0:02:52]} 4. e3 {[%clk 0:02:58]}  Bg7 {[%clk 0:02:51]} 5. Bd3 {[%clk 0:02:56]}  O-O {[%clk 0:02:52]} 6. Be5 {[%clk 0:02:54]}  c5 {[%clk 0:02:51]} 7. c3 {[%clk 0:02:53]}  Nc6 {[%clk 0:02:50]} 8. O-O {[%clk 0:02:52]}  Bg4 {[%clk 0:02:49]} 9. Bg3 {[%clk 0:02:47]}  Nd7 {[%clk 0:02:48]} 10. Nbd2 {[%clk 0:02:43]}  e5 {[%clk 0:02:47]} 11. dxe5 {[%clk 0:02:41]}  Ndxe5 {[%clk 0:02:47]} 12. Be2 {[%clk 0:02:41]}  Nxf3+ {[%clk 0:02:45]} 13. Nxf3 {[%clk 0:02:40]}  Be6 {[%clk 0:02:43]} 14. Qc2 {[%clk 0:02:34]}  Rc8 {[%clk 0:02:34]} 15. Rad1 {[%clk 0:02:32]}  Qa5 {[%clk 0:02:33]} 16. a3 {[%clk 0:02:29]}  d4 {[%clk 0:02:28]} 17. exd4 {[%clk 0:02:25]}  cxd4 {[%clk 0:02:27]} 18. c4 {[%clk 0:02:01]}  Qb6 {[%clk 0:02:19]} 19. Bd3 {[%clk 0:01:57]}  Na5 {[%clk 0:02:09]} 20. Nd2 {[%clk 0:01:51]}  Nc6 {[%clk 0:01:43]} 21. b4 {[%clk 0:01:48]}  Ne5 {[%clk 0:01:43]} 22. c5 {[%clk 0:01:43]}  Qc6 {[%clk 0:01:41]} 23. Ne4 {[%clk 0:01:34]}  Nxd3 {[%clk 0:01:39]} 24. Qxd3 {[%clk 0:01:31]}  Bf5 {[%clk 0:01:39]} 25. f3 {[%clk 0:01:27]}  Rfe8 {[%clk 0:01:39]} 26. Rfe1 {[%clk 0:01:20]}  Re6 {[%clk 0:01:38]} 27. Bd6 {[%clk 0:01:09]}  b5 {[%clk 0:01:36]} 28. g4 {[%clk 0:01:05]}  Bxe4 {[%clk 0:01:33]} 29. Rxe4 {[%clk 0:01:03]}  Rce8 {[%clk 0:01:31]} 30. Rxe6 {[%clk 0:00:52]}  Rxe6 {[%clk 0:01:31]} 31. Kg2 {[%clk 0:00:51]}  Re3 {[%clk 0:01:30]} 32. Qf1 {[%clk 0:00:37]}  Qe8 {[%clk 0:01:30]} 33. Bg3 {[%clk 0:00:27]}  Re2+ {[%clk 0:01:28]} 34. Bf2 {[%clk 0:00:27]}  f5 {[%clk 0:01:20]} 35. gxf5 {[%clk 0:00:26]}  gxf5 {[%clk 0:01:19]} 36. Kh1 {[%clk 0:00:22]}  f4 {[%clk 0:01:08]} 37. Qg1 {[%clk 0:00:21]}  Qh5 {[%clk 0:01:04]} 38. Qg2 {[%clk 0:00:19]}  Kf7 {[%clk 0:00:38]} 39. Rg1 {[%clk 0:00:17]}  Bf6 {[%clk 0:00:23]} 40. Qg8+ {[%clk 0:00:15]}  Ke7 {[%clk 0:00:24]} 41. Qg2 {[%clk 0:00:11]}  d3 {[%clk 0:00:22]} 42. Re1 {[%clk 0:00:10]}  Qe5 {[%clk 0:00:20]} 43. Rxe2 {[%clk 0:00:10]}  dxe2 {[%clk 0:00:20]} 44. Be1 {[%clk 0:00:09]}  Qe3 {[%clk 0:00:19]} 45. Qf2 {[%clk 0:00:09]}  Qxf2 {[%clk 0:00:19]} 46. Bxf2 {[%clk 0:00:09]}  Bc3 {[%clk 0:00:19]} 47. Kg2 {[%clk 0:00:09]}  e1=Q {[%clk 0:00:18]} 48. Bxe1 {[%clk 0:00:09]}  Bxe1 {[%clk 0:00:19]} 49. Kh3 {[%clk 0:00:10]}  Bc3 {[%clk 0:00:19]} 50. Kg4 {[%clk 0:00:11]}  Bb2 {[%clk 0:00:19]} 51. Kxf4 {[%clk 0:00:11]}  Bxa3 {[%clk 0:00:19]} 52. Ke4 {[%clk 0:00:12]}  Bxb4 {[%clk 0:00:19]} 53. Kd5 {[%clk 0:00:13]}  a5 {[%clk 0:00:19]} 54. c6 {[%clk 0:00:13]}  Bd6 {[%clk 0:00:19]} 0-1


[Site "https://www.chess.com"]